[Event "Titled Tuesday Blitz May 9 Early 2023"]
[White "Csonka, Balazs"]
[Black "Nikologorskiy, Konstantin"]
[WhiteFideId "742910"]
[BlackFideId "24111708"]
[WhiteElo "2404"]
[BlackElo "2273"]
[Result "1-0"]
[Round "07"]
[TimeControl "180+2"]
[Date "2023.05.09"]
[WhiteClock "0:00:24"]
[BlackClock "0:00:15"]

1. d4 {[%clk 0:03:00]}  Nf6 {[%clk 0:02:57]} 2. c4 {[%clk 0:03:00]}  e6 {[%clk 0:02:58]} 3. Nc3 {[%clk 0:02:59]}  Bb4 {[%clk 0:02:58]} 4. e3 {[%clk 0:02:59]}  O-O {[%clk 0:02:58]} 5. a3 {[%clk 0:02:59]}  Bxc3+ {[%clk 0:02:57]} 6. bxc3 {[%clk 0:03:00]}  c5 {[%clk 0:02:57]} 7. Ne2 {[%clk 0:03:00]}  b6 {[%clk 0:02:56]} 8. Ng3 {[%clk 0:03:00]}  Ba6 {[%clk 0:02:56]} 9. e4 {[%clk 0:02:38]}  Ne8 {[%clk 0:02:54]} 10. Bd3 {[%clk 0:02:11]}  Nc6 {[%clk 0:02:53]} 11. Be3 {[%clk 0:02:07]}  d6 {[%clk 0:02:48]} 12. O-O {[%clk 0:01:56]}  Na5 {[%clk 0:02:48]} 13. Qe2 {[%clk 0:01:56]}  Rc8 {[%clk 0:02:46]} 14. d5 {[%clk 0:01:48]}  exd5 {[%clk 0:02:31]} 15. cxd5 {[%clk 0:01:49]}  Bxd3 {[%clk 0:02:03]} 16. Qxd3 {[%clk 0:01:50]}  g6 {[%clk 0:02:00]} 17. f4 {[%clk 0:01:42]}  Ng7 {[%clk 0:01:58]} 18. f5 {[%clk 0:01:35]}  Re8 {[%clk 0:01:48]} 19. f6 {[%clk 0:01:23]}  Nh5 {[%clk 0:01:47]} 20. Nxh5 {[%clk 0:01:22]}  gxh5 {[%clk 0:01:47]} 21. Bh6 {[%clk 0:01:17]}  h4 {[%clk 0:01:35]} 22. Rf5 {[%clk 0:00:52]}  Re5 {[%clk 0:00:45]} 23. Qf3 {[%clk 0:00:45]}  Kh8 {[%clk 0:00:24]} 24. Bg7+ {[%clk 0:00:44]}  Kg8 {[%clk 0:00:24]} 25. Qg4 {[%clk 0:00:42]}  Rxe4 {[%clk 0:00:16]} 26. Qxe4 {[%clk 0:00:39]}  Qe8 {[%clk 0:00:17]} 27. Qg4 {[%clk 0:00:30]}  Qe3+ {[%clk 0:00:17]} 28. Rf2 {[%clk 0:00:25]}  Qd3 {[%clk 0:00:15]} 29. Qxc8# {[%clk 0:00:24]} 1-0


[Site "https://www.chess.com"]

[Event "Titled Tuesday Blitz May 9 Early 2023"]
[White "Mortazavi, Ali"]
[Black "Rozman, Levy"]
[WhiteFideId "401323"]
[BlackFideId "2039877"]
[WhiteElo "2339"]
[BlackElo "2376"]
[Result "0-1"]
[Round "07"]
[TimeControl "180+2"]
[Date "2023.05.09"]
[WhiteClock "0:00:04"]
[BlackClock "0:00:39"]

1. Nf3 {[%clk 0:03:00]}  g6 {[%clk 0:02:58]} 2. e4 {[%clk 0:02:59]}  Bg7 {[%clk 0:02:59]} 3. d4 {[%clk 0:02:53]}  d6 {[%clk 0:02:59]} 4. Nc3 {[%clk 0:02:51]}  a6 {[%clk 0:02:59]} 5. Be3 {[%clk 0:02:49]}  b5 {[%clk 0:02:58]} 6. Bd3 {[%clk 0:02:50]}  e6 {[%clk 0:02:57]} 7. Ne2 {[%clk 0:02:48]}  Bb7 {[%clk 0:02:56]} 8. Ng3 {[%clk 0:02:48]}  Nd7 {[%clk 0:02:54]} 9. c3 {[%clk 0:02:47]}  Ne7 {[%clk 0:02:54]} 10. Qd2 {[%clk 0:02:47]}  h6 {[%clk 0:02:53]} 11. a4 {[%clk 0:02:46]}  c6 {[%clk 0:02:50]} 12. O-O {[%clk 0:02:42]}  Nf6 {[%clk 0:02:41]} 13. h3 {[%clk 0:02:41]}  Qc7 {[%clk 0:02:32]} 14. b4 {[%clk 0:02:31]}  Kf8 {[%clk 0:02:30]} 15. e5 {[%clk 0:02:22]}  Nfd5 {[%clk 0:02:26]} 16. exd6 {[%clk 0:02:20]}  Qxd6 {[%clk 0:02:27]} 17. Ne4 {[%clk 0:02:20]}  Qc7 {[%clk 0:02:23]} 18. Nc5 {[%clk 0:02:19]}  Kg8 {[%clk 0:02:16]} 19. Rfe1 {[%clk 0:02:09]}  Kh7 {[%clk 0:02:15]} 20. h4 {[%clk 0:02:03]}  Nf5 {[%clk 0:02:14]} 21. h5 {[%clk 0:01:57]}  Rhe8 {[%clk 0:02:08]} 22. hxg6+ {[%clk 0:01:41]}  fxg6 {[%clk 0:02:07]} 23. Qc2 {[%clk 0:01:25]}  Bf8 {[%clk 0:01:44]} 24. Bd2 {[%clk 0:01:22]}  Bxc5 {[%clk 0:01:42]} 25. bxc5 {[%clk 0:01:22]}  Rad8 {[%clk 0:01:27]} 26. g4 {[%clk 0:01:07]}  Nfe7 {[%clk 0:01:09]} 27. Ne5 {[%clk 0:01:07]}  Rg8 {[%clk 0:01:08]} 28. Kg2 {[%clk 0:00:59]}  Kg7 {[%clk 0:01:05]} 29. Rh1 {[%clk 0:00:51]}  Rh8 {[%clk 0:01:03]} 30. Rh3 {[%clk 0:00:48]}  Rdf8 {[%clk 0:01:00]} 31. Qc1 {[%clk 0:00:44]}  g5 {[%clk 0:00:58]} 32. Bxg5 {[%clk 0:00:40]}  Ng8 {[%clk 0:00:58]} 33. Bd2 {[%clk 0:00:33]}  Qe7 {[%clk 0:00:55]} 34. Qe1 {[%clk 0:00:24]}  Nf4+ {[%clk 0:00:52]} 35. Bxf4 {[%clk 0:00:24]}  Rxf4 {[%clk 0:00:53]} 36. Qe3 {[%clk 0:00:22]}  Qg5 {[%clk 0:00:50]} 37. f3 {[%clk 0:00:18]}  h5 {[%clk 0:00:48]} 38. Ng6 {[%clk 0:00:15]}  hxg4 {[%clk 0:00:41]} 39. Rxh8 {[%clk 0:00:08]}  gxf3+ {[%clk 0:00:41]} 40. Kf1 {[%clk 0:00:05]}  Qg2+ {[%clk 0:00:41]} 41. Ke1 {[%clk 0:00:06]}  f2+ {[%clk 0:00:42]} 42. Kd1 {[%clk 0:00:06]}  f1=Q+ {[%clk 0:00:42]} 43. Bxf1 {[%clk 0:00:03]}  Rxf1+ {[%clk 0:00:42]} 44. Qe1 {[%clk 0:00:04]}  Rxe1+ {[%clk 0:00:41]} 45. Kxe1 {[%clk 0:00:04]}  Qg1+ {[%clk 0:00:41]} 46. Kd2 {[%clk 0:00:04]}  Qxa1 {[%clk 0:00:39]} 47. Rh3 {[%clk 0:00:04]} 0-1


[Site "https://www.chess.com"]

[Event "Titled Tuesday Blitz May 9 Early 2023"]
[White "Klukin, Kirill"]
[Black "Sousa, Andre Ventura"]
[WhiteFideId "24199273"]
[BlackFideId "1917617"]
[WhiteElo "2344"]
[BlackElo "2333"]
[Result "0-1"]
[Round "07"]
[TimeControl "180+2"]
[Date "2023.05.09"]
[WhiteClock "0:01:02"]
[BlackClock "0:02:07"]

1. e4 {[%clk 0:02:57]}  e5 {[%clk 0:02:59]} 2. Nf3 {[%clk 0:02:57]}  Nc6 {[%clk 0:03:00]} 3. Bc4 {[%clk 0:02:58]}  Nf6 {[%clk 0:03:00]} 4. Ng5 {[%clk 0:02:57]}  d5 {[%clk 0:03:00]} 5. exd5 {[%clk 0:02:57]}  Na5 {[%clk 0:03:00]} 6. Bb5+ {[%clk 0:02:58]}  c6 {[%clk 0:03:01]} 7. dxc6 {[%clk 0:02:59]}  bxc6 {[%clk 0:03:02]} 8. Bd3 {[%clk 0:03:00]}  Nd5 {[%clk 0:03:01]} 9. Nf3 {[%clk 0:02:58]}  Bd6 {[%clk 0:03:01]} 10. O-O {[%clk 0:02:57]}  O-O {[%clk 0:03:01]} 11. Nc3 {[%clk 0:02:54]}  f5 {[%clk 0:02:57]} 12. Nxd5 {[%clk 0:02:19]}  cxd5 {[%clk 0:02:58]} 13. b4 {[%clk 0:02:20]}  Nc6 {[%clk 0:02:51]} 14. b5 {[%clk 0:02:19]}  Ne7 {[%clk 0:02:41]} 15. Be2 {[%clk 0:02:15]}  e4 {[%clk 0:02:29]} 16. Nd4 {[%clk 0:02:12]}  f4 {[%clk 0:02:27]} 17. Bg4 {[%clk 0:02:10]}  f3 {[%clk 0:02:19]} 18. Be6+ {[%clk 0:01:30]}  Bxe6 {[%clk 0:02:10]} 19. Nxe6 {[%clk 0:01:28]}  Qc8 {[%clk 0:02:10]} 20. Re1 {[%clk 0:01:04]}  Qxe6 {[%clk 0:02:08]} 21. Qxf3 {[%clk 0:01:02]}  Rxf3 {[%clk 0:02:07]} 0-1


[Site "https://www.chess.com"]

[Event "Titled Tuesday Blitz May 9 Early 2023"]
[White "HamedWafa4"]
[Black "Cherniaiev, Tykhon"]
[BlackFideId "14182360"]
[WhiteElo "2546"]
[BlackElo "2450"]
[Result "1/2-1/2"]
[Round "07"]
[TimeControl "180+2"]
[Date "2023.05.09"]
[WhiteClock "0:00:05"]
[BlackClock "0:00:03"]

1. e4 {[%clk 0:03:00]}  e5 {[%clk 0:02:59]} 2. Nf3 {[%clk 0:02:53]}  Nc6 {[%clk 0:02:57]} 3. Bb5 {[%clk 0:02:53]}  Nge7 {[%clk 0:02:57]} 4. Nc3 {[%clk 0:02:52]}  a6 {[%clk 0:02:57]} 5. Bc4 {[%clk 0:02:52]}  Ng6 {[%clk 0:02:54]} 6. d3 {[%clk 0:02:51]}  Bc5 {[%clk 0:02:48]} 7. h4 {[%clk 0:02:48]}  h6 {[%clk 0:02:25]} 8. h5 {[%clk 0:02:46]}  Nf8 {[%clk 0:02:24]} 9. Be3 {[%clk 0:02:39]}  Bxe3 {[%clk 0:01:38]} 10. fxe3 {[%clk 0:02:37]}  d6 {[%clk 0:01:38]} 11. a3 {[%clk 0:02:26]}  Be6 {[%clk 0:01:37]} 12. Nd5 {[%clk 0:02:16]}  Nd7 {[%clk 0:01:35]} 13. Qe2 {[%clk 0:02:10]}  Nf6 {[%clk 0:01:33]} 14. O-O-O {[%clk 0:02:05]}  Qd7 {[%clk 0:01:24]} 15. Nxf6+ {[%clk 0:02:00]}  gxf6 {[%clk 0:01:25]} 16. Bxe6 {[%clk 0:01:59]}  Qxe6 {[%clk 0:01:25]} 17. Kb1 {[%clk 0:01:59]}  O-O-O {[%clk 0:01:24]} 18. c4 {[%clk 0:01:55]}  f5 {[%clk 0:01:20]} 19. exf5 {[%clk 0:01:48]}  Qxf5 {[%clk 0:01:21]} 20. e4 {[%clk 0:01:48]}  Qe6 {[%clk 0:01:20]} 21. Rdf1 {[%clk 0:01:45]}  Rdg8 {[%clk 0:01:20]} 22. Nh4 {[%clk 0:01:35]}  Nd4 {[%clk 0:01:19]} 23. Qf2 {[%clk 0:01:35]}  Rg5 {[%clk 0:01:17]} 24. Nf3 {[%clk 0:01:18]}  Nxf3 {[%clk 0:01:17]} 25. Qxf3 {[%clk 0:01:16]}  Rh7 {[%clk 0:01:08]} 26. Rf2 {[%clk 0:01:10]}  Rhg7 {[%clk 0:00:42]} 27. Qe3 {[%clk 0:00:17]}  b6 {[%clk 0:00:38]} 28. Rhf1 {[%clk 0:00:15]}  Rxh5 {[%clk 0:00:33]} 29. Rf6 {[%clk 0:00:14]}  Qd7 {[%clk 0:00:32]} 30. Rxh6 {[%clk 0:00:13]}  Rxh6 {[%clk 0:00:18]} 31. Qxh6 {[%clk 0:00:14]}  Rxg2 {[%clk 0:00:19]} 32. Qf6 {[%clk 0:00:09]}  Qa4 {[%clk 0:00:16]} 33. Rf2 {[%clk 0:00:03]}  Rxf2 {[%clk 0:00:11]} 34. Qxf2 {[%clk 0:00:04]}  Qd1+ {[%clk 0:00:12]} 35. Ka2 {[%clk 0:00:04]}  Qxd3 {[%clk 0:00:13]} 36. Qxf7 {[%clk 0:00:05]}  Qxe4 {[%clk 0:00:12]} 37. Qg8+ {[%clk 0:00:05]}  Kb7 {[%clk 0:00:12]} 38. Kb3 {[%clk 0:00:06]}  Qd3+ {[%clk 0:00:12]} 39. Ka2 {[%clk 0:00:07]}  e4 {[%clk 0:00:13]} 40. Qe6 {[%clk 0:00:06]}  e3 {[%clk 0:00:13]} 41. a4 {[%clk 0:00:07]}  e2 {[%clk 0:00:13]} 42. a5 {[%clk 0:00:08]}  b5 {[%clk 0:00:12]} 43. cxb5 {[%clk 0:00:08]}  axb5 {[%clk 0:00:13]} 44. a6+ {[%clk 0:00:08]}  Kb6 {[%clk 0:00:08]} 45. Qe8 {[%clk 0:00:06]}  Qd5+ {[%clk 0:00:08]} 46. Ka3 {[%clk 0:00:04]}  Kxa6 {[%clk 0:00:05]} 47. Qxe2 {[%clk 0:00:03]}  Qc5+ {[%clk 0:00:05]} 48. Kb3 {[%clk 0:00:02]}  d5 {[%clk 0:00:04]} 49. Qe6+ {[%clk 0:00:02]}  c6 {[%clk 0:00:05]} 50. Qc8+ {[%clk 0:00:02]}  Ka5 {[%clk 0:00:02]} 51. Qa8+ {[%clk 0:00:03]}  Kb6 {[%clk 0:00:02]} 52. Qb8+ {[%clk 0:00:03]}  Ka6 {[%clk 0:00:02]} 53. Qc8+ {[%clk 0:00:03]}  Ka7 {[%clk 0:00:02]} 54. Qc7+ {[%clk 0:00:03]}  Ka8 {[%clk 0:00:02]} 55. Qc8+ {[%clk 0:00:04]}  Ka7 {[%clk 0:00:02]} 56. Qc7+ {[%clk 0:00:05]}  Ka6 {[%clk 0:00:03]} 57. Qc8+ {[%clk 0:00:05]} 1/2-1/2


[Site "https://www.chess.com"]

[Event "Titled Tuesday Blitz May 9 Early 2023"]
[White "Rottenwohrer Suarez, Juan"]
[Black "Sammed Jaykumar, Shete"]
[WhiteFideId "32068182"]
[BlackFideId "5073421"]
[WhiteElo "2174"]
[BlackElo "2278"]
[Result "0-1"]
[Round "07"]
[TimeControl "180+2"]
[Date "2023.05.09"]
[WhiteClock "0:00:00"]
[BlackClock "0:00:25"]

1. d4 {[%clk 0:03:00]}  Nf6 {[%clk 0:02:59]} 2. c4 {[%clk 0:03:01]}  c6 {[%clk 0:02:58]} 3. Nc3 {[%clk 0:03:01]}  d5 {[%clk 0:02:59]} 4. Nf3 {[%clk 0:03:02]}  e6 {[%clk 0:02:59]} 5. Bg5 {[%clk 0:03:01]}  Nbd7 {[%clk 0:02:57]} 6. e3 {[%clk 0:03:02]}  Bd6 {[%clk 0:02:55]} 7. Bd3 {[%clk 0:02:53]}  dxc4 {[%clk 0:02:52]} 8. Bxc4 {[%clk 0:02:54]}  b5 {[%clk 0:02:53]} 9. Bd3 {[%clk 0:02:54]}  Bb7 {[%clk 0:02:53]} 10. O-O {[%clk 0:02:50]}  O-O {[%clk 0:02:52]} 11. Ne4 {[%clk 0:02:40]}  Be7 {[%clk 0:02:49]} 12. Rc1 {[%clk 0:02:26]}  a6 {[%clk 0:02:26]} 13. Nxf6+ {[%clk 0:02:13]}  Nxf6 {[%clk 0:02:24]} 14. Ne5 {[%clk 0:01:37]}  c5 {[%clk 0:02:13]} 15. dxc5 {[%clk 0:01:21]}  Qd5 {[%clk 0:02:04]} 16. c6 {[%clk 0:01:13]}  Qxe5 {[%clk 0:01:51]} 17. cxb7 {[%clk 0:01:12]}  Rad8 {[%clk 0:01:48]} 18. Bf4 {[%clk 0:01:09]}  Qxb2 {[%clk 0:01:46]} 19. b8=Q {[%clk 0:01:00]}  Rxb8 {[%clk 0:01:47]} 20. Bxb8 {[%clk 0:01:01]}  Rxb8 {[%clk 0:01:47]} 21. Qc2 {[%clk 0:00:53]}  Qe5 {[%clk 0:01:39]} 22. Qc7 {[%clk 0:00:42]}  Qxc7 {[%clk 0:01:05]} 23. Rxc7 {[%clk 0:00:41]}  Nd5 {[%clk 0:01:05]} 24. Ra7 {[%clk 0:00:27]}  Bf8 {[%clk 0:00:59]} 25. Rxa6 {[%clk 0:00:19]}  Nb4 {[%clk 0:00:58]} 26. Ra3 {[%clk 0:00:20]}  Nc6 {[%clk 0:00:57]} 27. Rb3 {[%clk 0:00:18]}  b4 {[%clk 0:00:57]} 28. Rfb1 {[%clk 0:00:13]}  Rd8 {[%clk 0:00:55]} 29. Be4 {[%clk 0:00:10]}  Ne5 {[%clk 0:00:55]} 30. g3 {[%clk 0:00:10]}  f5 {[%clk 0:00:54]} 31. Bg2 {[%clk 0:00:08]}  g5 {[%clk 0:00:55]} 32. h4 {[%clk 0:00:08]}  g4 {[%clk 0:00:55]} 33. R3b2 {[%clk 0:00:06]}  Kg7 {[%clk 0:00:52]} 34. Rc2 {[%clk 0:00:04]}  Kf6 {[%clk 0:00:52]} 35. Bf1 {[%clk 0:00:04]}  Nf3+ {[%clk 0:00:52]} 36. Kg2 {[%clk 0:00:04]}  h6 {[%clk 0:00:44]} 37. Be2 {[%clk 0:00:04]}  Ne5 {[%clk 0:00:45]} 38. Rd1 {[%clk 0:00:05]}  Ra8 {[%clk 0:00:44]} 39. Rdd2 {[%clk 0:00:05]}  Be7 {[%clk 0:00:42]} 40. Rd1 {[%clk 0:00:05]}  Ra3 {[%clk 0:00:41]} 41. Bc4 {[%clk 0:00:04]}  Nxc4 {[%clk 0:00:29]} 42. Rxc4 {[%clk 0:00:04]}  Rxa2 {[%clk 0:00:30]} 43. Rd7 {[%clk 0:00:04]}  b3 {[%clk 0:00:29]} 44. Rb7 {[%clk 0:00:04]}  b2 {[%clk 0:00:27]} 45. Rcc7 {[%clk 0:00:03]}  Ba3 {[%clk 0:00:25]} 46. Rc2 {[%clk 0:00:02]}  b1=Q {[%clk 0:00:24]} 47. Rxb1 {[%clk 0:00:01]}  Rxc2 {[%clk 0:00:25]} 48. Ra1 {[%clk 0:00:01]}  Bc5 {[%clk 0:00:25]} 49. Ra4 {[%clk 0:00:00]}  Bxe3 {[%clk 0:00:25]} 0-1


[Site "https://www.chess.com"]

[Event "Titled Tuesday Blitz May 9 Early 2023"]
[White "Nissinen, Niilo Man"]
[Black "djokovic74"]
[WhiteFideId "30950767"]
[WhiteElo "1952"]
[BlackElo "2689"]
[Result "1-0"]
[Round "07"]
[TimeControl "180+2"]
[Date "2023.05.09"]
[WhiteClock "0:00:10"]
[BlackClock "0:00:02"]

1. e4 {[%clk 0:03:00]}  e6 {[%clk 0:03:00]} 2. d4 {[%clk 0:03:00]}  d5 {[%clk 0:03:01]} 3. e5 {[%clk 0:03:01]}  c5 {[%clk 0:03:01]} 4. c3 {[%clk 0:03:02]}  Nc6 {[%clk 0:03:01]} 5. Nf3 {[%clk 0:03:01]}  Nge7 {[%clk 0:03:02]} 6. Na3 {[%clk 0:03:01]}  Nf5 {[%clk 0:02:58]} 7. Nc2 {[%clk 0:03:01]}  cxd4 {[%clk 0:02:58]} 8. cxd4 {[%clk 0:03:01]}  Qb6 {[%clk 0:02:58]} 9. Bd3 {[%clk 0:03:01]}  Bd7 {[%clk 0:02:56]} 10. O-O {[%clk 0:03:01]}  a5 {[%clk 0:02:54]} 11. Bxf5 {[%clk 0:02:55]}  exf5 {[%clk 0:02:53]} 12. Ne3 {[%clk 0:02:56]}  Be6 {[%clk 0:02:50]} 13. g3 {[%clk 0:02:48]}  Be7 {[%clk 0:02:45]} 14. Ng2 {[%clk 0:02:44]}  h6 {[%clk 0:02:07]} 15. h4 {[%clk 0:02:29]}  O-O {[%clk 0:01:57]} 16. Re1 {[%clk 0:02:28]}  Rfc8 {[%clk 0:01:50]} 17. Nf4 {[%clk 0:02:21]}  Nb4 {[%clk 0:01:49]} 18. Re2 {[%clk 0:02:21]}  Rc7 {[%clk 0:01:41]} 19. Nxe6 {[%clk 0:02:17]}  fxe6 {[%clk 0:01:24]} 20. Be3 {[%clk 0:02:10]}  Rac8 {[%clk 0:01:21]} 21. Ne1 {[%clk 0:02:09]}  Qb5 {[%clk 0:01:05]} 22. a3 {[%clk 0:02:00]}  Nc6 {[%clk 0:00:54]} 23. Nd3 {[%clk 0:02:00]}  Nd8 {[%clk 0:00:42]} 24. h5 {[%clk 0:01:42]}  Qe8 {[%clk 0:00:39]} 25. Nf4 {[%clk 0:01:39]}  Bg5 {[%clk 0:00:36]} 26. Ng6 {[%clk 0:01:39]}  Bxe3 {[%clk 0:00:32]} 27. Rxe3 {[%clk 0:01:35]}  Rc2 {[%clk 0:00:28]} 28. Rb3 {[%clk 0:01:35]}  Qd7 {[%clk 0:00:20]} 29. Qd3 {[%clk 0:01:25]}  Nf7 {[%clk 0:00:18]} 30. Rb6 {[%clk 0:01:22]}  Ng5 {[%clk 0:00:16]} 31. Kg2 {[%clk 0:01:05]}  Ne4 {[%clk 0:00:15]} 32. Rf1 {[%clk 0:01:04]}  Kh7 {[%clk 0:00:05]} 33. Qb5 {[%clk 0:01:00]}  Qxb5 {[%clk 0:00:04]} 34. Rxb5 {[%clk 0:01:01]}  R8c7 {[%clk 0:00:04]} 35. Nf8+ {[%clk 0:00:53]}  Kg8 {[%clk 0:00:04]} 36. Nxe6 {[%clk 0:00:54]}  R7c6 {[%clk 0:00:05]} 37. Nf4 {[%clk 0:00:52]}  Rd2 {[%clk 0:00:04]} 38. Nxd5 {[%clk 0:00:52]}  Rcc2 {[%clk 0:00:05]} 39. Rxb7 {[%clk 0:00:32]}  Rxf2+ {[%clk 0:00:05]} 40. Rxf2 {[%clk 0:00:32]}  Rxf2+ {[%clk 0:00:06]} 41. Kg1 {[%clk 0:00:33]}  Rd2 {[%clk 0:00:07]} 42. Ne7+ {[%clk 0:00:31]}  Kf7 {[%clk 0:00:04]} 43. Ng6+ {[%clk 0:00:30]}  Ke6 {[%clk 0:00:05]} 44. Re7+ {[%clk 0:00:29]}  Kd5 {[%clk 0:00:05]} 45. Rd7+ {[%clk 0:00:28]}  Kc4 {[%clk 0:00:05]} 46. e6 {[%clk 0:00:26]}  Nxg3 {[%clk 0:00:03]} 47. e7 {[%clk 0:00:20]}  Re2 {[%clk 0:00:03]} 48. Ne5+ {[%clk 0:00:20]}  Kb3 {[%clk 0:00:02]} 49. e8=Q {[%clk 0:00:20]}  f4 {[%clk 0:00:02]} 50. Qb8+ {[%clk 0:00:19]}  Kc2 {[%clk 0:00:02]} 51. Rc7+ {[%clk 0:00:17]}  Kb1 {[%clk 0:00:03]} 52. Qb3 {[%clk 0:00:12]}  f3 {[%clk 0:00:01]} 53. Qd3+ {[%clk 0:00:11]}  Ka1 {[%clk 0:00:01]} 54. Rc1+ {[%clk 0:00:10]}  Ka2 {[%clk 0:00:02]} 55. Qc4+ {[%clk 0:00:10]}  Kxb2 {[%clk 0:00:02]} 56. Qc3+ {[%clk 0:00:10]}  Ka2 {[%clk 0:00:02]} 57. Ra1# {[%clk 0:00:10]} 1-0


[Site "https://www.chess.com"]

[Event "Titled Tuesday Blitz May 9 Early 2023"]
[White "Kaasen, Tor Fredrik"]
[Black "Nguyen, Hong Anh"]
[WhiteFideId "1516647"]
[BlackFideId "12406732"]
[WhiteElo "2349"]
[BlackElo "2054"]
[Result "1-0"]
[Round "07"]
[TimeControl "180+2"]
[Date "2023.05.09"]
[WhiteClock "0:02:31"]
[BlackClock "0:01:06"]

1. e4 {[%clk 0:02:57]}  c5 {[%clk 0:02:57]} 2. Nf3 {[%clk 0:02:57]}  Nc6 {[%clk 0:02:55]} 3. Bb5 {[%clk 0:02:57]}  g6 {[%clk 0:02:54]} 4. O-O {[%clk 0:02:55]}  Bg7 {[%clk 0:02:52]} 5. c3 {[%clk 0:02:56]}  Nf6 {[%clk 0:02:52]} 6. Re1 {[%clk 0:02:55]}  O-O {[%clk 0:02:50]} 7. d4 {[%clk 0:02:56]}  d5 {[%clk 0:02:49]} 8. e5 {[%clk 0:02:56]}  Ne4 {[%clk 0:02:49]} 9. Be3 {[%clk 0:02:57]}  Qb6 {[%clk 0:02:43]} 10. Bxc6 {[%clk 0:02:57]}  bxc6 {[%clk 0:02:42]} 11. Qc1 {[%clk 0:02:57]}  Rb8 {[%clk 0:02:38]} 12. b3 {[%clk 0:02:57]}  cxd4 {[%clk 0:02:37]} 13. cxd4 {[%clk 0:02:56]}  Bg4 {[%clk 0:02:33]} 14. Nfd2 {[%clk 0:02:55]}  Rfc8 {[%clk 0:02:29]} 15. Nxe4 {[%clk 0:02:51]}  dxe4 {[%clk 0:02:28]} 16. Nc3 {[%clk 0:02:52]}  c5 {[%clk 0:02:22]} 17. Na4 {[%clk 0:02:51]}  cxd4 {[%clk 0:02:08]} 18. Qxc8+ {[%clk 0:02:51]}  Bxc8 {[%clk 0:01:56]} 19. Nxb6 {[%clk 0:02:51]}  dxe3 {[%clk 0:01:55]} 20. Nxc8 {[%clk 0:02:52]}  exf2+ {[%clk 0:01:54]} 21. Kxf2 {[%clk 0:02:53]}  Rxc8 {[%clk 0:01:54]} 22. Rac1 {[%clk 0:02:51]}  Rxc1 {[%clk 0:01:44]} 23. Rxc1 {[%clk 0:02:51]}  Bxe5 {[%clk 0:01:45]} 24. b4 {[%clk 0:02:45]}  f5 {[%clk 0:01:41]} 25. a4 {[%clk 0:02:39]}  f4 {[%clk 0:01:38]} 26. Rc4 {[%clk 0:02:36]}  e3+ {[%clk 0:01:34]} 27. Kf3 {[%clk 0:02:37]}  Kf7 {[%clk 0:01:34]} 28. b5 {[%clk 0:02:35]}  Ke6 {[%clk 0:01:33]} 29. a5 {[%clk 0:02:35]}  Kd5 {[%clk 0:01:33]} 30. b6 {[%clk 0:02:30]}  axb6 {[%clk 0:01:31]} 31. a6 {[%clk 0:02:31]}  Kxc4 {[%clk 0:01:08]} 32. a7 {[%clk 0:02:31]}  Kd3 {[%clk 0:01:08]} 33. a8=Q {[%clk 0:02:31]}  e2 {[%clk 0:01:06]} 34. Qe4+ {[%clk 0:02:31]} 1-0


[Site "https://www.chess.com"]

[Event "Titled Tuesday Blitz May 9 Early 2023"]
[White "surrenderPLS"]
[Black "Goltsev, Dmitry"]
[BlackFideId "24176710"]
[WhiteElo "2521"]
[BlackElo "2356"]
[Result "0-1"]
[Round "07"]
[TimeControl "180+2"]
[Date "2023.05.09"]
[WhiteClock "0:00:14"]
[BlackClock "0:00:58"]

1. e4 {[%clk 0:03:00]}  e6 {[%clk 0:02:59]} 2. d4 {[%clk 0:03:00]}  d5 {[%clk 0:03:00]} 3. Nc3 {[%clk 0:03:01]}  c5 {[%clk 0:03:01]} 4. exd5 {[%clk 0:02:52]}  exd5 {[%clk 0:03:01]} 5. Bb5+ {[%clk 0:02:52]}  Nc6 {[%clk 0:03:01]} 6. dxc5 {[%clk 0:02:51]}  Nf6 {[%clk 0:03:01]} 7. Nf3 {[%clk 0:02:50]}  Bxc5 {[%clk 0:03:00]} 8. O-O {[%clk 0:02:35]}  O-O {[%clk 0:02:59]} 9. Bg5 {[%clk 0:02:34]}  Bg4 {[%clk 0:02:58]} 10. h3 {[%clk 0:02:27]}  Bh5 {[%clk 0:02:58]} 11. g4 {[%clk 0:02:26]}  Bg6 {[%clk 0:02:57]} 12. Bxf6 {[%clk 0:02:19]}  Qxf6 {[%clk 0:02:56]} 13. Qxd5 {[%clk 0:02:19]}  Bb6 {[%clk 0:02:53]} 14. Kg2 {[%clk 0:02:02]}  Bxc2 {[%clk 0:02:47]} 15. Rac1 {[%clk 0:01:56]}  Rad8 {[%clk 0:02:44]} 16. Qg5 {[%clk 0:01:47]}  Qxg5 {[%clk 0:02:43]} 17. Nxg5 {[%clk 0:01:48]}  Nd4 {[%clk 0:02:31]} 18. Nf3 {[%clk 0:01:34]}  Bg6 {[%clk 0:02:28]} 19. Nxd4 {[%clk 0:01:28]}  Rxd4 {[%clk 0:02:29]} 20. Rfd1 {[%clk 0:01:27]}  Rfd8 {[%clk 0:02:25]} 21. Rxd4 {[%clk 0:01:26]}  Rxd4 {[%clk 0:02:26]} 22. Rd1 {[%clk 0:01:26]}  a6 {[%clk 0:02:24]} 23. Rxd4 {[%clk 0:01:25]}  Bxd4 {[%clk 0:02:25]} 24. Be2 {[%clk 0:01:25]}  Kf8 {[%clk 0:02:21]} 25. f4 {[%clk 0:01:16]}  f6 {[%clk 0:02:13]} 26. Bf3 {[%clk 0:01:09]}  b5 {[%clk 0:02:06]} 27. a3 {[%clk 0:01:07]}  Bd3 {[%clk 0:02:00]} 28. Bb7 {[%clk 0:00:59]}  a5 {[%clk 0:01:45]} 29. Ba6 {[%clk 0:00:59]}  Bxc3 {[%clk 0:01:31]} 30. bxc3 {[%clk 0:01:00]}  Ke7 {[%clk 0:01:29]} 31. Kf3 {[%clk 0:00:55]}  Kd6 {[%clk 0:01:29]} 32. Ke3 {[%clk 0:00:54]}  Bf1 {[%clk 0:01:28]} 33. h4 {[%clk 0:00:44]}  Kc5 {[%clk 0:01:27]} 34. g5 {[%clk 0:00:35]}  Bh3 {[%clk 0:01:22]} 35. Bb7 {[%clk 0:00:30]}  Kc4 {[%clk 0:01:18]} 36. Kd2 {[%clk 0:00:29]}  Kb3 {[%clk 0:01:12]} 37. Bc6 {[%clk 0:00:16]}  Bf1 {[%clk 0:01:11]} 38. Be4 {[%clk 0:00:10]}  h6 {[%clk 0:01:04]} 39. gxh6 {[%clk 0:00:09]}  gxh6 {[%clk 0:01:04]} 40. Bd5+ {[%clk 0:00:09]}  Kxa3 {[%clk 0:01:04]} 41. Kc2 {[%clk 0:00:09]}  Bc4 {[%clk 0:01:00]} 42. Be4 {[%clk 0:00:04]}  Be6 {[%clk 0:00:55]} 43. Bd3 {[%clk 0:00:02]}  b4 {[%clk 0:00:53]} 44. cxb4 {[%clk 0:00:03]}  axb4 {[%clk 0:00:53]} 45. Kb1 {[%clk 0:00:02]}  Kb3 {[%clk 0:00:53]} 46. f5 {[%clk 0:00:02]}  Bd5 {[%clk 0:00:53]} 47. Kc1 {[%clk 0:00:02]}  Kc3 {[%clk 0:00:53]} 48. Be2 {[%clk 0:00:02]}  Be4 {[%clk 0:00:53]} 49. Bd1 {[%clk 0:00:01]}  b3 {[%clk 0:00:52]} 50. Bxb3 {[%clk 0:00:01]}  Kxb3 {[%clk 0:00:53]} 51. Kd2 {[%clk 0:00:02]}  Bxf5 {[%clk 0:00:54]} 52. Ke3 {[%clk 0:00:03]}  Kc4 {[%clk 0:00:54]} 53. Kf4 {[%clk 0:00:03]}  Bg6 {[%clk 0:00:54]} 54. h5 {[%clk 0:00:04]}  Bxh5 {[%clk 0:00:54]} 55. Kf5 {[%clk 0:00:05]}  Bf3 {[%clk 0:00:54]} 56. Kxf6 {[%clk 0:00:05]}  h5 {[%clk 0:00:54]} 57. Kf5 {[%clk 0:00:06]}  Bg4+ {[%clk 0:00:55]} 58. Kf4 {[%clk 0:00:07]}  Kd4 {[%clk 0:00:55]} 59. Kg3 {[%clk 0:00:08]}  Ke5 {[%clk 0:00:56]} 60. Kh2 {[%clk 0:00:09]}  Kf4 {[%clk 0:00:57]} 61. Kg1 {[%clk 0:00:10]}  Kg3 {[%clk 0:00:57]} 62. Kh1 {[%clk 0:00:11]}  h4 {[%clk 0:00:57]} 63. Kg1 {[%clk 0:00:12]}  h3 {[%clk 0:00:57]} 64. Kh1 {[%clk 0:00:13]}  Bf3+ {[%clk 0:00:57]} 65. Kg1 {[%clk 0:00:14]}  h2+ {[%clk 0:00:58]} 66. Kf1 {[%clk 0:00:14]}  h1=Q# {[%clk 0:00:58]} 0-1


[Site "https://www.chess.com"]